fUSD/lending_fUSD_20240520
["ID","MTS","AMOUNT","RATE_DAILY","PERIOD"]
[327581961,1716245435982,-150.0,0.00037836,2]
[327581962,1716245435992,-157.052107,0.00037848,38]
[327581963,1716245436002,-150.0,0.00037849,2]
[327581964,1716245436012,-300.0,0.00037891,120]
[327581965,1716245436021,-157.052107,0.00037898,38]
[327581966,1716245436031,-3600.0,0.000379,13]
[327581967,1716245436040,-150.0,0.00037924,2]
[327581968,1716245436050,-157.052107,0.00037948,40]
[327581969,1716245436059,-11617.58624769,0.00037972,2]
[327581970,1716245436068,-1173.46765146,0.0003798,2]
[327581971,1716245436077,-157.052107,0.00037998,40]
[327581972,1716245436087,-150.0,0.00037998,2]
[327581973,1716245436096,-18165.28110329,0.00038,10]
[327581974,1716245436105,-160.0,0.00038,27]
[327581975,1716245436114,-150.0,0.00038006,2]
[327581976,1716245436124,-157.54,0.00038027,30]
[327581977,1716245436133,-157.052107,0.00038048,42]
[327581978,1716245436142,-158.08429,0.0003806,2]
[327581979,1716245436152,-157.052107,0.00038098,42]
[327581980,1716245436161,-150.0,0.00038101,2]
[327581981,1716245436171,-157.052107,0.00038148,44]
[327581982,1716245436180,-1007.0061,0.00038156,10]
[327581983,1716245436190,-1565.2946698,0.00038176,2]
[327581984,1716245436200,-157.052107,0.00038198,44]
[327581985,1716245436210,-158.08429,0.0003822,2]
[327581986,1716245436224,-150.0,0.00038229,2]
[327581987,1716245436234,-157.052107,0.00038248,46]
[327581988,1716245436243,-150.0,0.0003825,2]
[327581989,1716245436253,-2476.9186,0.00038252,2]
[327581990,1716245436262,-7500.0,0.00038253,2]
[327581991,1716245436271,-190.94720952,0.00038253,2]
[327581992,1716245436280,-387.05071317,0.00038254,4]
[327581993,1716245436290,-379.27042235,0.00038254,4]
[327581994,1716245436300,-155.0,0.00038254,4]
[327581995,1716245436309,-773.98091568,0.00038254,13]
[327581996,1716245436319,-162.26364252,0.00038255,2]
[327581997,1716245436328,-773.98091568,0.00038255,13]
[327581998,1716245436337,-257.207,0.00038255,2]
[327581999,1716245436347,-1024.5636,0.00038255,2]
[327582000,1716245436356,-2015.4347,0.00038255,120]
[327582001,1716245436366,-39769.0724,0.00038255,120]
[327582002,1716245436375,-180.85846528,0.00038256,11]
[327582003,1716245436384,-773.98091568,0.00038256,13]
[327582004,1716245436393,-150.0,0.0003828,2]
[327582005,1716245436402,-157.052107,0.00038298,46]
[327582006,1716245436412,-2454.0,0.000383,10]
[327582007,1716245436421,-150.0,0.00038316,2]
[327582008,1716245436431,-4594.27005244,0.00038318,4]
[327582009,1716245436440,-190.94720948,0.00038322,2]
[327582010,1716245436450,-260.99838734,0.00038343,2]
[327582011,1716245436459,-172.84,0.00038345,2]
[327582012,1716245436471,-260.99838734,0.00038346,2]
[327582013,1716245436481,-600.0,0.00038348,31]
[327582014,1716245436490,-157.052107,0.00038348,48]
[327582015,1716245436499,-155.0,0.00038351,4]
[327582016,1716245436508,-179.34189382,0.00038352,4]
[327582017,1716245436519,-6769.49926427,0.00038352,4]
[327582018,1716245436528,-1034.5075879,0.00038352,2]
[327582019,1716245436537,-192.94622587,0.00038353,4]
[327582020,1716245436546,-204.44716233,0.00038353,4]
[327582021,1716245436555,-207.23404543,0.00038353,4]
[327582022,1716245436565,-504.95866722,0.00038353,4]
[327582023,1716245436575,-405.80972008,0.00038353,4]
[327582024,1716245436583,-200.39727453,0.00038353,4]
[327582025,1716245436592,-217.44746409,0.00038353,4]
[327582026,1716245436602,-1000.0,0.00038353,4]
[327582027,1716245436611,-7508.65350991,0.00038353,4]
[327582028,1716245436620,-292.59685848,0.00038353,4]
[327582029,1716245436630,-566.18248955,0.00038353,2]
[327582030,1716245436639,-1247.87118364,0.00038353,4]
[327582031,1716245436649,-1689.24335302,0.00038353,4]
[327582032,1716245436658,-317.63013013,0.00038353,4]
[327582033,1716245436667,-155.13037829,0.00038353,4]
[327582034,1716245436677,-155.0,0.00038353,4]
[327582035,1716245436686,-240341.93519247,0.00038353,4]
[327582036,1716245436696,-209.43798206,0.00038353,4]
[327582037,1716245436706,-19893.45957982,0.00038353,4]
[327582038,1716245436717,-155.0,0.00038353,2]
[327582039,1716245436726,-155.0,0.00038353,4]
[327582040,1716245436735,-162.50319315,0.00038353,4]
[327582041,1716245436744,-326.47360097,0.00038353,4]
[327582042,1716245436753,-1034.5075879,0.00038353,2]
[327582043,1716245436763,-445.0,0.00038354,2]
[327582044,1716245436772,-409.94933149,0.00038354,2]
[327582045,1716245436782,-64888.44631265,0.00038354,2]
[327582046,1716245436791,-1206.14494,0.00038354,4]
[327582047,1716245436800,-2184.52280122,0.00038354,4]
[327582048,1716245436810,-54025.09596034,0.00038355,4]
[327582049,1716245436826,-2360.35387545,0.00038355,4]
[327582050,1716245436838,-604.08169236,0.00038355,4]
[327582051,1716245436849,-979.38,0.00038355,4]
[327582052,1716245436864,-725.86856105,0.00038355,4]
[327582053,1716245436875,-560.2023371,0.00038355,4]
[327582054,1716245436887,-422.76314946,0.00038355,4]
[327582055,1716245436899,-2478.29101073,0.00038355,4]
[327582056,1716245436911,-556.70320369,0.00038355,4]
[327582057,1716245436922,-10221.54014574,0.00038355,4]
[327582058,1716245436934,-5563.52123378,0.00038355,4]
[327582059,1716245436948,-92145.29188208,0.00038355,4]
[327582060,1716245436960,-752.35031756,0.00038355,4]
[327582061,1716245436975,-439.07171928,0.00038355,4]
[327582062,1716245436989,-297.182565,0.00038355,4]
[327582063,1716245437001,-3813.17988348,0.00038355,4]
[327582064,1716245437012,-1119.80783631,0.00038355,4]
[327582065,1716245437023,-18591.84940248,0.00038355,4]
[327582066,1716245437034,-479.17421262,0.00038355,4]
[327582067,1716245437189,-942.30705744,0.00019451,2]
[327582068,1716245437200,-284.70394208,0.00019451,2]
[327582069,1716245437210,-949.01746547,0.00038355,4]
[327582070,1716245437224,-635.582128,0.00038355,4]
[327582071,1716245437236,-569.99999994,0.00038355,4]
[327582072,1716245437247,-351.899999,0.00038355,4]
[327582073,1716245437259,-2719.05049637,0.00038355,4]
[327582074,1716245437270,-521.97670531,0.00038355,4]
[327582078,1716245439473,-198.97228417,0.00034981,2]
[327582081,1716245439483,-198.97228417,0.00035488,2]
[327582084,1716245439492,-218.05543166,0.00038355,4]
[327582088,1716245439503,-3946.75929907,0.00038355,4]
[327582093,1716245439548,-16824.80193412,0.00038355,4]
[327582104,1716245441142,-2000.0,0.000337,2]
[327582105,1716245441151,-29897.7020366,0.00038355,4]
[327582106,1716245441161,-2500.0,0.00038355,5]
[327582107,1716245441170,-1190.42,0.00038355,5]
[327582108,1716245441180,-151.0,0.00038355,7]
[327582109,1716245441190,-151.0,0.00038355,7]
[327582110,1716245441199,-151.0,0.00038355,7]
[327582111,1716245441209,-151.0,0.00038355,7]
[327582112,1716245441218,-151.0,0.00038355,7]
[327582113,1716245441228,-151.0,0.00038355,7]
[327582114,1716245441237,-151.0,0.00038355,7]
[327582115,1716245441247,-285.498724,0.00038355,7]
[327582116,1716245441256,-285.498724,0.00038355,7]
[327582117,1716245441266,-258.009433,0.00038355,7]
[327582118,1716245441275,-258.009433,0.00038355,7]
[327582119,1716245441284,-151.0,0.00038355,7]
[327582120,1716245441293,-690.19,0.00038355,5]
[327582121,1716245441302,-500.0,0.00038356,6]
[327582122,1716245441311,-517.85854031,0.00038356,6]
[327582123,1716245441320,-500.0,0.00038356,6]
[327582124,1716245441329,-520.81657983,0.00038356,6]
[327582125,1716245441338,-500.0,0.00038356,6]
[327582126,1716245441348,-500.0,0.00038356,6]
[327582127,1716245441357,-500.0,0.00038356,6]
[327582128,1716245441366,-590.08722483,0.00038356,6]
[327582129,1716245441375,-500.0,0.00038356,6]
[327582130,1716245441384,-500.0,0.00038356,6]
[327582131,1716245441394,-500.0,0.00038356,6]
[327582132,1716245441403,-500.0,0.00038356,6]
[327582133,1716245441412,-524.86542989,0.00038356,6]
[327582134,1716245441421,-500.0,0.00038356,6]
[327582135,1716245441431,-398.73490968,0.00038356,6]
[327582136,1716245441440,-500.0,0.00038356,6]
[327582137,1716245441450,-500.0,0.00038356,6]
[327582138,1716245441459,-854.79978887,0.00038356,4]
[327582139,1716245441468,-500.0,0.00038356,6]
[327582140,1716245441479,-500.0,0.00038356,6]
[327582141,1716245441489,-9322.41825533,0.00038356,5]
[327582142,1716245441499,-221.87906488,0.00038356,6]
[327582143,1716245441508,-1607.51526347,0.00038356,4]
[327582144,1716245441517,-500.0,0.00038356,6]
[327582145,1716245441527,-500.0,0.00038356,6]
[327582146,1716245441537,-513.48357439,0.00038356,6]
[327582147,1716245441546,-500.0,0.00038356,6]
[327582148,1716245441557,-155.0,0.00038356,2]
[327582149,1716245441566,-519.82231939,0.00038356,6]
[327582150,1716245441575,-500.0,0.00038356,6]
[327582151,1716245441584,-500.0,0.00038356,6]
[327582152,1716245441595,-500.0,0.00038356,6]
[327582153,1716245441604,-500.0,0.00038356,6]
[327582154,1716245441615,-500.0,0.00038356,6]
[327582155,1716245441625,-500.0,0.00038356,6]
[327582156,1716245441635,-509.91795007,0.00038356,6]
[327582157,1716245441646,-500.0,0.00038356,6]
[327582158,1716245441655,-518.52327778,0.00038356,6]
[327582159,1716245441664,-206.27705642,0.00038356,6]
[327582160,1716245441673,-511.2471682,0.00038356,6]
[327582161,1716245441683,-500.0,0.00038356,6]
[327582162,1716245441693,-511.04657691,0.00038356,6]
[327582163,1716245441702,-500.0,0.00038356,6]
[327582164,1716245441712,-500.0,0.00038356,6]
[327582165,1716245441725,-500.0,0.00038356,6]
[327582166,1716245441735,-507.41219693,0.00038356,6]
[327582167,1716245441744,-511.13147039,0.00038356,6]
[327582168,1716245441754,-529.23810908,0.00038356,6]
[327582169,1716245441763,-500.0,0.00038356,6]
[327582170,1716245441772,-521.48189266,0.00038356,6]
[327582171,1716245441780,-500.0,0.00038356,6]
[327582172,1716245441790,-500.0,0.00038356,6]
[327582173,1716245441799,-500.0,0.00038356,6]
[327582174,1716245441809,-441.4070949,0.00038356,4]
[327582175,1716245441818,-540.47389286,0.00038356,6]
[327582176,1716245441828,-500.0,0.00038356,6]
[327582177,1716245441837,-509.97022761,0.00038356,6]
[327582178,1716245441846,-515.49853733,0.00038356,6]
[327582179,1716245441856,-185.60238994,0.00038356,6]
[327582180,1716245441867,-528.1509911,0.00038356,6]
[327582181,1716245441878,-509.95820615,0.00038356,6]
[327582182,1716245441888,-499.26175053,0.00038356,6]
[327582183,1716245441897,-200.0,0.00038356,6]
[327582184,1716245441906,-500.0,0.00038356,6]
[327582185,1716245441917,-500.0,0.00038356,6]
[327582186,1716245441926,-500.0,0.00038356,6]
[327582187,1716245441935,-527.26988211,0.00038356,6]
[327582188,1716245441946,-517.73124297,0.00038356,6]
[327582189,1716245441956,-500.0,0.00038356,6]
[327582190,1716245441965,-512.71672221,0.00038356,6]
[327582191,1716245441978,-500.0,0.00038356,6]
[327582192,1716245441987,-517.99609228,0.00038356,6]
[327582193,1716245441996,-500.0,0.00038356,6]
[327582194,1716245442006,-500.0,0.00038356,6]
[327582195,1716245442015,-1228.85839079,0.00038356,2]
[327582196,1716245442025,-500.0,0.00038356,6]
[327582197,1716245442034,-500.0,0.00038356,6]
[327582198,1716245442043,-202.65106558,0.00038356,6]
[327582199,1716245442052,-1186.39,0.00038356,6]
[327582200,1716245442062,-521.55017506,0.00038356,6]
[327582201,1716245442071,-500.0,0.00038356,6]
[327582202,1716245442080,-500.0,0.00038356,6]
[327582203,1716245442090,-311.51963478,0.00038356,6]
[327582204,1716245442099,-500.0,0.00038356,6]
[327582205,1716245442108,-500.0,0.00038356,6]
[327582206,1716245442118,-929.22,0.00038356,6]
[327582207,1716245442127,-500.0,0.00038356,6]
[327582208,1716245442135,-534.43561266,0.00038356,6]
[327582209,1716245442144,-604.11,0.00038356,6]
[327582210,1716245442153,-500.0,0.00038356,6]
[327582211,1716245442162,-938.05,0.00038356,6]
[327582212,1716245442172,-506.38,0.00038356,6]
[327582213,1716245442181,-500.0,0.00038356,6]
[327582214,1716245442190,-500.0,0.00038356,6]
[327582215,1716245442199,-500.0,0.00038356,6]
[327582216,1716245442208,-500.0,0.00038356,6]
[327582217,1716245442217,-500.0,0.00038356,6]
[327582218,1716245442228,-1500.0,0.00038356,6]
[327582219,1716245442237,-666.6,0.00038356,6]
[327582220,1716245442246,-500.0,0.00038356,6]
[327582221,1716245442255,-400.16313821,0.00038356,6]
[327582222,1716245442264,-500.0,0.00038356,6]
[327582223,1716245442273,-500.0,0.00038356,6]
[327582224,1716245442283,-500.0,0.00038356,6]
[327582225,1716245442292,-500.0,0.00038356,6]
[327582226,1716245442301,-500.0,0.00038356,6]
[327582227,1716245442310,-503.78,0.00038356,6]
[327582228,1716245442319,-680.03,0.00038356,6]
[327582229,1716245442328,-500.0,0.00038356,6]
[327582230,1716245442338,-500.0,0.00038356,6]
[327582231,1716245442347,-517.06892843,0.00038356,6]
[327582232,1716245442356,-551.14,0.00038356,6]
[327582233,1716245442365,-500.0,0.00038356,6]
[327582234,1716245442375,-500.0,0.00038356,6]
[327582235,1716245442384,-699.16,0.00038356,6]
[327582236,1716245442393,-500.0,0.00038356,6]
[327582237,1716245442402,-457.31187962,0.00038356,6]
[327582238,1716245442411,-151.0,0.00038356,7]
[327582239,1716245442420,-623.06,0.00038356,6]
[327582240,1716245442430,-500.0,0.00038356,6]
[327582241,1716245442439,-562.29,0.00038356,6]
[327582242,1716245442448,-581.44806951,0.00038356,6]
[327582243,1716245442457,-500.0,0.00038356,6]
[327582244,1716245442467,-151.0,0.00038356,7]
[327582245,1716245442478,-151.0,0.00038356,7]
[327582246,1716245442487,-153.5184,0.00038356,7]
[327582247,1716245442496,-840.02,0.00038356,6]
[327582248,1716245442506,-2000.0,0.00038356,6]
[327582249,1716245442515,-500.0,0.00038356,6]
[327582250,1716245442526,-500.0,0.00038356,6]
[327582251,1716245442535,-1000.0,0.00038356,6]
[327582252,1716245442545,-500.0,0.00038356,6]
[327582253,1716245442555,-897.19,0.00038356,6]
[327582254,1716245442794,-666.5,0.00038356,6]
[327582255,1716245442806,-500.0,0.00038356,6]
[327582256,1716245442815,-500.0,0.00038356,6]
[327582257,1716245442826,-500.0,0.00038356,6]
[327582258,1716245442836,-518.12447405,0.00038356,6]
[327582259,1716245442846,-1206.99,0.00038356,6]
[327582260,1716245442855,-500.0,0.00038356,6]
[327582261,1716245442867,-500.0,0.00038356,6]
[327582262,1716245442878,-500.0,0.00038356,6]
[327582263,1716245442887,-500.0,0.00038356,6]
[327582264,1716245442896,-500.0,0.00038356,6]
[327582265,1716245442907,-538.56159906,0.00038356,6]
[327582266,1716245442916,-500.0,0.00038356,6]
[327582267,1716245442926,-500.0,0.00038356,6]
[327582268,1716245442935,-500.0,0.00038356,6]
[327582269,1716245442947,-500.0,0.00038356,6]
[327582270,1716245442957,-500.0,0.00038356,6]
[327582271,1716245442966,-500.0,0.00038356,6]
[327582272,1716245442976,-500.0,0.00038356,6]
[327582273,1716245442984,-500.0,0.00038356,6]
[327582274,1716245442994,-500.0,0.00038356,6]
[327582275,1716245443004,-501.72901746,0.00038356,6]
[327582276,1716245443013,-500.0,0.00038356,6]
[327582277,1716245443023,-500.0,0.00038356,6]
[327582278,1716245443032,-500.0,0.00038356,6]
[327582279,1716245443042,-500.0,0.00038356,6]
[327582280,1716245443051,-522.25631653,0.00038356,6]
[327582281,1716245443061,-881.43,0.00038356,6]
[327582282,1716245443070,-500.0,0.00038356,6]
[327582283,1716245443079,-500.0,0.00038356,6]
[327582284,1716245443088,-500.0,0.00038356,6]
[327582285,1716245443098,-500.0,0.00038356,6]
[327582286,1716245443108,-500.0,0.00038356,6]
[327582287,1716245443118,-500.0,0.00038356,2]
[327582288,1716245443127,-587.76,0.00038356,6]
[327582289,1716245443136,-546.14,0.00038356,6]
[327582290,1716245443145,-500.0,0.00038356,6]
[327582291,1716245443154,-500.0,0.00038356,6]
[327582292,1716245443163,-500.0,0.00038356,6]
[327582293,1716245443172,-500.0,0.00038356,6]
[327582294,1716245443181,-500.0,0.00038356,6]
[327582295,1716245443191,-500.0,0.00038356,6]
[327582296,1716245443201,-1073.98,0.00038356,6]
[327582297,1716245443211,-500.0,0.00038356,6]
[327582298,1716245443220,-500.0,0.00038356,6]
[327582299,1716245443230,-151.0,0.00038356,7]
[327582300,1716245443239,-389.82,0.00038356,6]
[327582301,1716245443249,-511.84918837,0.00038356,6]
[327582302,1716245443258,-500.0,0.00038356,6]
[327582303,1716245443268,-500.0,0.00038356,6]
[327582304,1716245443278,-1257.33,0.00038356,6]
[327582305,1716245443287,-500.0,0.00038356,6]
[327582306,1716245443296,-1000.0,0.00038356,2]
[327582307,1716245443306,-457.03385521,0.00038356,6]
[327582308,1716245443316,-500.0,0.00038356,6]
[327582310,1716245443326,-513.24616634,0.00038356,6]
[327582312,1716245443335,-500.0,0.00038356,6]
[327582313,1716245443344,-500.0,0.00038356,6]
[327582315,1716245443353,-500.0,0.00038356,6]
[327582317,1716245443363,-500.0,0.00038356,6]
[327582319,1716245443372,-500.0,0.00038356,6]
[327582321,1716245443382,-160.55500157,0.00038356,6]
[327582323,1716245443393,-500.0,0.00038356,6]
[327582324,1716245443402,-520.17,0.00038356,6]
[327582325,1716245443412,-500.0,0.00038356,6]
[327582326,1716245443422,-151.0,0.00038356,7]
[327582327,1716245443432,-500.0,0.00038356,6]
[327582328,1716245443441,-519.4118026,0.00038356,6]
[327582329,1716245443451,-500.0,0.00038356,6]
[327582330,1716245443460,-151.0,0.00038356,7]
[327582331,1716245443470,-151.0,0.00038356,7]
[327582332,1716245443479,-500.0,0.00038356,6]
[327582333,1716245443489,-699.07,0.00038356,6]
[327582334,1716245443498,-500.0,0.00038356,6]
[327582335,1716245443507,-630.43,0.00038356,6]
[327582336,1716245443516,-151.0,0.00038356,7]
[327582337,1716245443526,-151.0,0.00038356,7]
[327582338,1716245443535,-151.0,0.00038356,7]
[327582339,1716245443544,-951.9,0.00038356,6]
[327582340,1716245443553,-504.32578355,0.00038356,6]
[327582341,1716245443562,-500.0,0.00038356,6]
[327582342,1716245443571,-500.0,0.00038356,6]
[327582343,1716245443581,-500.0,0.00038356,6]
[327582344,1716245443592,-500.0,0.00038356,6]
[327582345,1716245443601,-186.75438156,0.00038356,6]
[327582346,1716245443611,-500.0,0.00038356,6]
[327582347,1716245443620,-566.09,0.00038356,6]
[327582348,1716245443631,-500.0,0.00038356,6]
[327582349,1716245443640,-573.17,0.00038356,6]
[327582350,1716245443650,-510.56812933,0.00038356,6]
[327582351,1716245443659,-500.0,0.00038356,6]
[327582352,1716245443668,-692.51,0.00038356,6]
[327582353,1716245443677,-511.32181628,0.00038356,6]
[327582354,1716245443686,-500.0,0.00038356,6]
[327582355,1716245443695,-500.0,0.00038356,6]
[327582356,1716245443704,-500.0,0.00038356,6]
[327582357,1716245443714,-500.0,0.00038356,6]
[327582358,1716245443723,-500.0,0.00038356,6]
[327582359,1716245443732,-500.0,0.00038356,6]
[327582360,1716245443742,-500.0,0.00038356,6]
[327582361,1716245443751,-500.0,0.00038356,6]
[327582362,1716245443760,-500.77,0.00038356,6]
[327582363,1716245443769,-523.68,0.00038356,6]
[327582364,1716245443779,-500.0,0.00038356,6]
[327582365,1716245443788,-500.0,0.00038356,6]
[327582366,1716245443797,-500.0,0.00038356,6]
[327582367,1716245443807,-500.0,0.00038356,6]
[327582368,1716245443816,-500.0,0.00038356,6]
[327582369,1716245443826,-581.9,0.00038356,6]
[327582370,1716245443836,-500.0,0.00038356,6]
[327582371,1716245443846,-874.62,0.00038356,6]
[327582372,1716245443855,-477.4768256,0.00038356,6]
[327582373,1716245443866,-500.0,0.00038356,6]
[327582374,1716245443878,-500.0,0.00038356,6]
[327582376,1716245443887,-500.0,0.00038356,6]
[327582377,1716245443896,-500.0,0.00038356,6]
[327582378,1716245443907,-1480.11,0.00038356,6]
[327582379,1716245443917,-500.0,0.00038356,6]
[327582380,1716245443926,-500.0,0.00038356,6]
[327582381,1716245443936,-500.0,0.00038356,6]
[327582383,1716245443946,-500.0,0.00038356,6]
[327582384,1716245443955,-519.47,0.00038356,6]
[327582385,1716245443965,-579.13,0.00038356,6]
[327582386,1716245443975,-538.89243218,0.00038356,6]
[327582387,1716245443984,-500.0,0.00038356,6]
[327582389,1716245443992,-500.0,0.00038356,6]
[327582391,1716245444002,-500.0,0.00038356,6]
[327582393,1716245444011,-521.78,0.00038356,6]
[327582395,1716245444021,-500.0,0.00038356,6]
[327582397,1716245444030,-500.0,0.00038356,6]
[327582399,1716245444040,-517.76,0.00038356,6]
[327582400,1716245444049,-1853.21,0.00038356,6]
[327582401,1716245444058,-500.0,0.00038356,6]
[327582402,1716245444067,-500.0,0.00038356,6]
[327582403,1716245444076,-392.95923582,0.00038356,6]
[327582404,1716245444085,-500.0,0.00038356,6]
[327582405,1716245444094,-500.0,0.00038356,6]
[327582406,1716245444103,-500.0,0.00038356,6]
[327582407,1716245444112,-500.0,0.00038356,6]
[327582408,1716245444122,-725.96,0.00038356,6]
[327582409,1716245444130,-500.0,0.00038356,6]
[327582410,1716245444141,-500.0,0.00038356,6]
[327582411,1716245444150,-500.0,0.00038356,6]
[327582412,1716245444159,-500.0,0.00038356,6]
[327582413,1716245444168,-151.0,0.00038356,7]
[327582414,1716245444179,-500.0,0.00038356,6]
[327582415,1716245444188,-500.0,0.00038356,6]
[327582416,1716245444198,-500.0,0.00038356,6]
[327582417,1716245444207,-503.91095357,0.00038356,6]
[327582418,1716245444216,-1377.2,0.00038356,6]
[327582419,1716245444226,-509.35775337,0.00038356,6]
[327582420,1716245444235,-500.0,0.00038356,6]
[327582421,1716245444244,-500.0,0.00038356,6]
[327582422,1716245444254,-1000.0,0.00038356,2]
[327582423,1716245444263,-1059.73,0.00038356,6]
[327582424,1716245444272,-500.0,0.00038356,6]
[327582425,1716245444281,-500.0,0.00038356,6]
[327582426,1716245444292,-500.0,0.00038356,6]
[327582427,1716245444301,-600.95447767,0.00038356,6]
[327582428,1716245444310,-802.75,0.00038356,6]
[327582429,1716245444319,-500.0,0.00038356,6]
[327582430,1716245444329,-500.0,0.00038356,6]
[327582431,1716245444338,-500.0,0.00038356,6]
[327582432,1716245444348,-1017.28,0.00038356,6]
[327582433,1716245444358,-500.0,0.00038356,6]
[327582434,1716245444369,-500.0,0.00038356,6]
[327582435,1716245444378,-500.0,0.00038356,6]
[327582436,1716245444388,-500.0,0.00038356,6]
[327582437,1716245444397,-500.0,0.00038356,6]
[327582438,1716245444407,-516.73012523,0.00038356,6]
[327582439,1716245444418,-500.0,0.00038356,6]
[327582440,1716245444428,-500.0,0.00038356,6]
[327582441,1716245444437,-1005.04,0.00038356,6]
[327582442,1716245444446,-500.0,0.00038356,6]
[327582443,1716245444455,-500.0,0.00038356,6]
[327582444,1716245444464,-545.92,0.00038356,6]
[327582445,1716245444474,-500.0,0.00038356,6]
[327582446,1716245444483,-500.0,0.00038356,6]
[327582447,1716245444493,-500.0,0.00038356,6]
[327582448,1716245444504,-1080.28,0.00038356,6]
[327582449,1716245444513,-500.0,0.00038356,6]
[327582450,1716245444522,-500.0,0.00038356,6]
[327582451,1716245444531,-528.08855207,0.00038356,6]
[327582452,1716245444541,-500.0,0.00038356,6]
[327582453,1716245444550,-500.0,0.00038356,6]
[327582454,1716245444560,-500.0,0.00038356,6]
[327582455,1716245444569,-500.0,0.00038356,6]
[327582456,1716245444578,-500.0,0.00038356,6]
[327582457,1716245444588,-521.12,0.00038356,6]
[327582458,1716245444597,-500.0,0.00038356,6]
[327582459,1716245444606,-500.0,0.00038356,6]
[327582460,1716245444615,-861.41,0.00038356,6]
[327582461,1716245444625,-151.0,0.00038356,7]
[327582462,1716245444634,-582.04,0.00038356,6]
[327582463,1716245444643,-152.56202,0.00038356,7]
[327582466,1716245444652,-340.58321882,0.00038356,6]
[327582468,1716245444662,-500.0,0.00038356,6]
[327582470,1716245444672,-500.0,0.00038356,6]
[327582472,1716245444681,-500.0,0.00038356,6]
[327582473,1716245444691,-151.0,0.00038356,7]
[327582475,1716245444702,-151.0,0.00038356,7]
[327582477,1716245444711,-151.0,0.00038356,7]
[327582478,1716245444721,-151.793775,0.00038356,7]
[327582479,1716245444731,-510.57857311,0.00038356,6]
[327582480,1716245444740,-500.0,0.00038356,6]
[327582481,1716245444749,-500.0,0.00038356,6]
[327582482,1716245444758,-1066.24,0.00038356,6]
[327582483,1716245444767,-500.0,0.00038356,6]
[327582484,1716245444777,-700.32,0.00038356,6]
[327582485,1716245444786,-500.0,0.00038356,6]
[327582486,1716245444795,-1227.85,0.00038356,6]
[327582487,1716245444804,-500.0,0.00038356,6]
[327582488,1716245444813,-500.0,0.00038356,6]
[327582489,1716245444822,-500.0,0.00038356,6]
[327582490,1716245444832,-500.0,0.00038356,6]
[327582491,1716245444841,-500.0,0.00038356,6]
[327582492,1716245444850,-504.89546292,0.00038356,6]
[327582493,1716245444861,-500.0,0.00038356,6]
[327582494,1716245444873,-500.0,0.00038356,6]
[327582495,1716245444882,-655.99,0.00038356,6]
[327582496,1716245444891,-542.5383141,0.00038356,6]
[327582497,1716245444900,-505.49,0.00038356,6]
[327582498,1716245444910,-500.0,0.00038356,6]
[327582499,1716245444920,-500.0,0.00038356,6]
[327582500,1716245444929,-537.49856165,0.00038356,6]
[327582501,1716245444939,-500.0,0.00038356,6]
[327582502,1716245444948,-500.0,0.00038356,6]
[327582503,1716245444957,-500.0,0.00038356,6]
[327582504,1716245444966,-500.0,0.00038356,6]
[327582505,1716245444976,-386.35650946,0.00038356,6]
[327582506,1716245444984,-500.0,0.00038356,6]